[Event "2nd Cambridge Open 2024"]
[Site "Cambridge"]
[Date "2024.02.22"]
[Round "6.2"]
[White "Tiviakov, Sergei"]
[Black "Dierssen Garcia-Barredo, Guiller"]
[Result "1-0"]
[ECO "B27"]
[WhiteElo "2537"]
[BlackElo "1937"]
[Annotator "TA"]
[PlyCount "101"]
[EventDate "2024.02.18"]
[EventType "swiss"]
[EventCountry "ENG"]
[SourceTitle "playchess.com"]
[Source "ChessBase"]
[SourceQuality "1"]
[TimeControl "5400+30"]

{[%evp 11,101,24,40,47,33,36,32,42,46,47,62,37,51,28,33,28,51,51,41,39,38,30,22,-8,24,38,53,44,54,43,56,54,45,47,51,37,47,60,62,57,80,83,87,80,79,77,76,78,171,141,134,141,135,144,138,132,158,149,152,149,168,168,168,168,483,511,511,148,529,522,529,472,506,493,1154,1223,1257,1035,968,776,1541,679,1562,1551,1867,1364,3974,2968,29951,29954,29981,29982]} 1. e4 {[%emt 0:00:03]} c5 {[%emt 0:00:04]} 2. Nf3 {[%emt 0:00:07]} g6 {[%emt 0:00:07]} 3. c3 {[%emt 0:00:06]} Bg7 {[%emt 0:00:06]} 4. d4 {[%emt 0:00:09]} cxd4 {[%emt 0:00:07]} 5. cxd4 {[%emt 0:00:04]} d5 {[%emt 0:00:08]} 6. e5 {[%emt 0:00:05]} Bg4 {[%emt 0:00:07]} 7. Bb5+ {[%emt 0:00:40]} Nd7 {[%emt 0:04:40]} 8. Nbd2 {[%emt 0:00:09]} Bxf3 {[%emt 0:02:11]} 9. Qxf3 {[%emt 0:05:38] White is slightly better.} a6 {[%emt 0:02:39]} 10. Bd3 {[%emt 0:11:34][%cal Oh2h4]} e6 {[%emt 0:20:07]} 11. Qe2 {[%emt 0:01:09] White is more active.} Ne7 {[%emt 0:01:21]} 12. Nf3 {[%emt 0:00:13]} Nc6 {[%emt 0:00:29]} 13. O-O {[%emt 0:01:19]} Qb6 {[%emt 0:02:18]} 14. Be3 {[%emt 0:00:28]} O-O {[%emt 0:00:10]} 15. h4 {[%emt 0:01:40][%cal Oh4h5]} f6 {[%emt 0:03:03]} 16. exf6 {[%emt 0:06:48]} Nxf6 {[%emt 0:01:21]} 17. Rad1 {[%emt 0:09:55]} Rae8 {[%emt 0:01:03]} (17... Ng4 {keeps more tension.} 18. Ng5 Nxe3 19. fxe3 Ne7) 18. Ne5 {[%emt 0:00:28]} Qc7 {[%emt 0:04:45]} (18... Nxd4 19. Bxd4 Qxd4 20. Bxg6 Qxh4 21. Bxe8 Rxe8 22. Rd3 $11) 19. f4 {[%emt 0:07:55]} Nh5 {[%emt 0:01:58]} 20. Rf3 {[%emt 0:02:06] Inhibits Ng3.} Ne7 {[%emt 0:17:08]} 21. Rc1 {[%emt 0:09:34]} Qd8 {[%emt 0:02:14]} 22. g4 {[%emt 0:05:29] Prevents Nf5} Nf6 {[%emt 0:00:30]} 23. Rh3 {[%emt 0:00:05]} Ne4 {[%emt 0:02:36]} 24. Qg2 $36 {[%emt 0:02:57][%mdl 2048] Black is under pressure.} Bxe5 {[%emt 0:13:28]} 25. fxe5 {[%emt 0:02:06]} Rf7 {[%emt 0:00:16] Black is weak on the dark squares} 26. Bxe4 {[%emt 0:10:18]} dxe4 {[%emt 0:00:07]} 27. Qxe4 {[%emt 0:00:02]} Qd5 {[%emt 0:00:40]} 28. Qxd5 {[%emt 0:00:05]} Nxd5 {[%emt 0:00:02]} 29. Bh6 {[%emt 0:00:14]} Rc7 {[%emt 0:12:15]} (29... Nb4 $16) 30. Rf1 {[%emt 0:03:55] Strongly threatening Rhf3.} Rf7 {[%emt 0:00:08]} 31. Rxf7 {[%emt 0:00:06]} Kxf7 $16 {[%emt 0:00:04][%mdl 4096] Endgame. KRB-KRN} 32. Rf3+ {[%emt 0:00:05]} Kg8 {[%emt 0:00:20]} 33. Kf2 {[%emt 0:01:17]} Rc8 {[%emt 0:00:07]} 34. Kg3 {[%emt 0:00:11]} Re8 {[%emt 0:00:23]} 35. Kh3 {[%emt 0:04:36]} Rc8 {[%emt 0:00:32]} 36. h5 {[%emt 0:00:29]} gxh5 {[%emt 0:02:37]} 37. gxh5 {[%emt 0:00:08]} Re8 $2 {[%emt 0:01:14]} (37... a5 38. Rb3 Rc7 39. Rg3+ Kf7 40. Rg7+ Ke8) 38. Rg3+ $18 {[%emt 0:05:25]} Kh8 {[%emt 0:00:58]} 39. Bg7+ {[%emt 0:00:02]} Kg8 {[%emt 0:00:30] [#] This move loses the game for Black.} 40. Bf6+ $1 {[%emt 0:00:02]} Kf8 {[%emt 0:00:57]} 41. Rg7 {[%emt 0:00:02]} Rc8 {[%emt 0:04:46]} 42. Rxh7 {[%emt 0:00:24]} (42. Rxb7 Nxf6 43. exf6 h6 $16) 42... Rc7 {[%emt 0:01:19]} (42... Rc1 $142 43. Rxb7 Nxf6) 43. Rxc7 {[%emt 0:02:55]} Nxc7 {[%emt 0:00:02] KB-KN} 44. Kg4 {[%emt 0:00:13]} Kg8 {[%emt 0:00:18]} 45. Kg5 {[%emt 0:00:04] [#] Kg6 would kill now.} Kh7 {[%emt 0:00:06]} 46. Bd8 {[%emt 0:01:28]} (46. h6 $142 Nd5 47. Bg7) 46... Nd5 {[%emt 0:00:12]} 47. h6 {[%emt 0:00:13]} b6 {[%emt 0:02:01]} 48. a3 {[%emt 0:01:09]} b5 {[%emt 0:00:38]} 49. Ba5 {[%emt 0:00:31]} Ne7 {[%emt 0:01:16]} 50. Kf6 {[%emt 0:00:06][%csl LRe6,LRe7]} Nc6 {[%emt 0:00:10]} 51. Bb6 {[%emt 0:00:08] Weighted Error Value: White=0.15 (very precise) /Black=0.20 (precise) .  Loses game:     	---       	Black=1      Mistake:       	---       	Black=3      Inaccurate:     	White=1     	Black=1      OK:         	White=16    	Black=15     Best:        	White=5     	Black=3      Strong:       	White=1     	---} 1-0

[Event "2nd Cambridge Open 2024"]
[Site "Cambridge"]
[Date "2024.02.22"]
[Round "6.3"]
[White "Fernandez, Daniel Howard"]
[Black "Wachinger, Nikolas"]
[Result "1-0"]
[ECO "A06"]
[WhiteElo "2525"]
[BlackElo "2437"]
[Annotator "TA"]
[PlyCount "101"]
[EventDate "2024.02.18"]
[EventType "swiss"]
[EventCountry "ENG"]
[SourceTitle "playchess.com"]
[Source "ChessBase"]
[SourceQuality "1"]
[TimeControl "5400+30"]

{[%evp 9,100,-14,-19,-25,-14,-17,-22,-15,0,0,-10,-26,-29,-72,-79,-76,-67,-61,-69,-66,-62,-68,-63,-87,-54,-60,-49,-45,-40,-50,-35,-30,-10,-11,-10,-14,-3,-11,-13,-14,0,0,18,0,0,0,0,0,0,0,0,0,0,0,0,0,0,0,8,8,12,12,16,0,20,10,8,14,14,27,70,72,93,99,557,560,530,421,1217,1182,1489,1381,1432,1058,2107,1997,29985,29986,29986,29987,29991,29992,29999]} 1. b3 {[%emt 0:07:48][%cal Bb2b3,Bb3b4,Bb4b5][%mdl 32]} d5 {[%emt 0:01:00]} 2. Bb2 {[%emt 0:00:09]} c5 {[%emt 0:01:11]} 3. Nf3 {[%emt 0:01:02]} Nf6 {[%emt 0:00:57]} 4. g3 {[%emt 0:08:33]} g6 {[%emt 0:04:30]} 5. c4 {[%emt 0:01:52]} d4 {[%emt 0:00:46]} 6. b4 {[%emt 0:09:51]} Nc6 {[%emt 0:10:16]} (6... cxb4 7. a3 $14) 7. b5 {[%emt 0:05:56]} Na5 {[%emt 0:01:11]} 8. d3 {[%emt 0:00:11] The position is equal.} Bh6 {[%emt 0:09:48]} 9. Bg2 {[%emt 0:00:53]} O-O {[%emt 0:00:53]} 10. Nbd2 {[%emt 0:00:04]} a6 {[%emt 0:02:59]} 11. bxa6 {[%emt 0:04:38]} Rxa6 {[%emt 0:00:49]} 12. O-O {[%emt 0:00:03]} Qd6 {[%emt 0:05:52]} 13. Nb3 {[%emt 0:00:51]} Nc6 {[%emt 0:03:01]} 14. Bc1 {[%emt 0:00:26]} Bxc1 {[%emt 0:02:04]} 15. Qxc1 {[%emt 0:00:03]} Kg7 {[%emt 0:01:26]} 16. a4 {[%emt 0:08:18]} e5 {[%emt 0:06:55]} 17. a5 {[%emt 0:00:42]} Bf5 {[%emt 0:08:46]} 18. Nfd2 {[%emt 0:10:37]} Re8 {[%emt 0:01:47]} 19. Re1 {[%emt 0:04:00]} h5 {[%emt 0:04:51][%cal Oh5h4]} 20. h4 {[%emt 0:05:01]} e4 {[%emt 0:01:33]} 21. dxe4 {[%emt 0:00:34]} Nxe4 {[%emt 0:00:06]} 22. Nxe4 {[%emt 0:03:03]} Bxe4 {[%emt 0:02:13]} 23. Qf4 $1 {[%emt 0:00:03]} Qxf4 {[%emt 0:03:14]} 24. gxf4 {[%emt 0:01:40]} Bxg2 {[%emt 0:05:22]} 25. Kxg2 {[%emt 0:00:01]} Rea8 {[%emt 0:00:32]} 26. Nxc5 {[%emt 0:07:32]} (26. Red1 $5) 26... Rxa5 {[%emt 0:00:09]} 27. Rxa5 {[%emt 0:00:05]} Nxa5 $11 {[%emt 0:00:11][%mdl 4096] Endgame. KRN-KRN} 28. Ra1 {[%emt 0:00:36] [#] Nxb7 is the strong threat.} Rc8 {[%emt 0:00:29]} 29. Rxa5 {[%emt 0:02:45] KRN-KR} b6 {[%emt 0:00:07][%csl LRa5,LRc5]} 30. Ne6+ {[%emt 0:00:05]} fxe6 {[%emt 0:00:14] KR-KR} 31. Ra4 {[%emt 0:00:24]} Kf6 {[%emt 0:01:58]} 32. Rb4 {[%emt 0:00:14]} Kf5 {[%emt 0:03:17]} 33. Kf3 {[%emt 0:00:06]} Rc6 {[%emt 0:01:18]} 34. e4+ {[%emt 0:01:16]} dxe3 {[%emt 0:01:35]} 35. fxe3 {[%emt 0:00:03][%cal Bf2e3,Be3e4,Be4e5][%mdl 32]} Rc8 {[%emt 0:00:59]} 36. e4+ {[%emt 0:01:59]} (36. Rxb6 Rxc4 37. Rb8 Kf6) 36... Kf6 {[%emt 0:00:02]} 37. Ke3 {[%emt 0:00:07]} (37. Rxb6 Rxc4 38. Rb1 Rc3+ 39. Kg2 Re3) 37... Rc6 {[%emt 0:01:14]} 38. Kd4 {[%emt 0:02:09]} Rd6+ {[%emt 0:00:08]} 39. Kc3 {[%emt 0:00:33] [#] White threatens e5+ and mate.} Rc6 {[%emt 0:02:27]} 40. Rb5 {[%emt 0:00:42]} Kf7 {[%emt 0:07:00]} 41. e5 {[%emt 0:01:00]} g5 $2 {[%emt 0:06:47][%mdl 8192] This move loses the game for Black.} 42. fxg5 $18 {[%emt 0:00:03][%cal Bf4g5,Bg5g6,Bg6g7][%mdl 32]} Kg6 {[%emt 0:00:03]} 43. Rb1 {[%emt 0:01:04]} Kf5 {[%emt 0:00:03]} (43... Kg7 $142 44. Kd4 Kg8) 44. Kd4 {[%emt 0:00:10]} Rc7 {[%emt 0:01:24]} 45. Rf1+ {[%emt 0:05:45]} Kg4 {[%emt 0:00:08]} 46. g6 {[%emt 0:00:06][%cal Og6g7] g7! would kill now.} Kxh4 {[%emt 0:01:07]} 47. Rg1 {[%emt 0:00:02] Threatening mate with g7.} Rd7+ {[%emt 0:00:40]} 48. Ke3 {[%emt 0:00:09] White mates.} Rg7 {[%emt 0:00:15]} 49. Kf3 {[%emt 0:00:09]} Rg8 {[%emt 0:00:10]} 50. g7 {[%emt 0:00:09]} Kh3 {[%emt 0:00:08]} 51. Rh1# {[%emt 0:12:28] Weighted Error Value: White=0.03 (flawless) /Black=0.43.  Loses game:     	---       	Black=1      Mistake:       	---       	Black=1      Inaccurate:     	White=1     	Black=2      OK:         	White=18    	Black=13     Best:        	White=3     	Black=4      Strong:       	White=1     	---} 1-0

[Event "2nd Cambridge Open 2024"]
[Site "Cambridge"]
[Date "2024.02.22"]
[Round "6.4"]
[White "Willow, Jonah B"]
[Black "Pereslavtsev, Alexandr"]
[Result "1-0"]
[ECO "B28"]
[WhiteElo "2434"]
[BlackElo "1696"]
[Annotator "TA"]
[PlyCount "51"]
[EventDate "2024.02.18"]
[EventType "swiss"]
[EventCountry "ENG"]
[SourceTitle "playchess.com"]
[Source "ChessBase"]
[SourceQuality "1"]
[TimeControl "5400+30"]

{[%evp 9,51,67,75,61,72,69,63,67,69,56,58,42,52,55,74,67,127,127,194,187,218,224,349,131,996,1006,1054,1016,980,952,1229,1175,29987,29988,29988,29989,29986,29987,29987,29988,29988,29989,29995,29996]} 1. e4 {[%emt 0:00:04]} c5 {[%emt 0:00:03]} 2. Nf3 {[%emt 0:00:14]} a6 {[%emt 0:00:08]} 3. c4 {[%emt 0:12:41]} d6 {[%emt 0:00:18]} 4. d4 {[%emt 0:00:45]} Bg4 {[%emt 0:00:13]} 5. d5 {[%emt 0:09:54]} g6 {[%emt 0:12:41]} 6. Qb3 {[%emt 0:04:22]} Qc7 {[%emt 0:17:31]} 7. Nfd2 {[%emt 0:00:42] White is more active.} Bg7 {[%emt 0:00:49]} 8. Nc3 {[%emt 0:06:01] White is slightly better.} Bc8 {[%emt 0:03:03]} 9. Be2 {[%emt 0:02:27]} e6 {[%emt 0:00:54]} 10. O-O {[%emt 0:04:09]} Ne7 {[%emt 0:01:32]} 11. a4 {[%emt 0:02:19]} Nd7 {[%emt 0:07:40]} 12. f4 {[%emt 0:05:14]} exd5 {[%emt 0:06:06]} (12... O-O $14) 13. cxd5 $16 {[%emt 0:01:29]} f5 {[%emt 0:01:49]} (13... O-O $16 14. Nc4 Rb8) 14. Nc4 $18 {[%emt 0:19:12][%cal Oe4e5] [#] e5! is the strong threat.} fxe4 {[%emt 0:17:58]} 15. Nxe4 {[%emt 0:00:09][%cal Bc3e4,Be4g5,Bg5f7,Bf7d6][%mdl 32]} Nf5 {[%emt 0:00:11]} (15... O-O $142 16. Nexd6 (16. Ncxd6 Qb6 $18) 16... Kh8) 16. Bg4 $2 {[%emt 0:07:47]} (16. g4 $18 {and the rest is easy.}) 16... Bf8 $2 {[%emt 0:06:53][%mdl 8192] Black cannot hold the game after this.} (16... O-O $16) 17. Re1 {[%emt 0:04:37][%csl LRc5,LRd6]} Kd8 {[%emt 0:01:03]} 18. Bxf5 {[%emt 0:09:13]} gxf5 {[%emt 0:00:18]} 19. Qc3 {[%emt 0:00:42]} Rg8 {[%emt 0:02:48]} 20. Ng5 {[%emt 0:00:07][%cal Rg5f7] [#]} Nb8 {[%emt 0:02:10]} 21. Qf6+ {[%emt 0:00:29] White mates.} Be7 {[%emt 0:00:12]} 22. Nf7+ {[%emt 0:00:09]} Ke8 {[%emt 0:00:22]} 23. Nfxd6+ {[%emt 0:00:59]} Kd8 {[%emt 0:00:09]} 24. Nf7+ {[%emt 0:00:05] A dynamic duo of knights.} Ke8 {[%emt 0:00:10]} 25. d6 {[%emt 0:00:28]} Rg6 {[%emt 0:00:26]} 26. Rxe7+ {[%emt 0:00:10] Weighted Error Value: White=0.16 (very precise) /Black=0.66.  Loses game:     	---       	Black=1      Missed win:     	White=1     	---        Mistake:       	---       	Black=3      OK:         	White=5     	Black=4      Best:        	White=1     	---} 1-0

[Event "2nd Cambridge Open 2024"]
[Site "Cambridge"]
[Date "2024.02.22"]
[Round "6.5"]
[White "Pert, Richard G"]
[Black "Adams, Michael"]
[Result "0-1"]
[ECO "D02"]
[WhiteElo "2411"]
[BlackElo "2674"]
[Annotator "TA"]
[PlyCount "108"]
[EventDate "2024.02.18"]
[EventType "swiss"]
[EventCountry "ENG"]
[SourceTitle "playchess.com"]
[Source "ChessBase"]
[SourceQuality "1"]
[TimeControl "5400+30"]

{[%evp 16,108,-16,-6,0,-35,0,0,0,0,0,-18,0,-22,-25,-27,-21,-26,-15,-10,-18,-25,-24,-37,-41,-35,-35,-35,-34,-37,-37,-70,-66,-73,-56,-127,-128,-114,-114,-121,-134,-110,0,0,0,0,0,0,18,18,50,0,0,0,64,78,66,66,82,64,414,407,362,-37,-15,-27,-34,-92,-95,-110,-116,-151,-66,-535,-530,-526,-548,-543,-519,-541,-241,-518,-546,-654,-654,-708,-697,-766,-784,-784,-767,-1085,-786,-1090,-1087]} 1. d4 {[%emt 0:00:05]} Nf6 {[%emt 0:00:07]} 2. Nf3 {[%emt 0:00:09]} d5 {[%emt 0:00:07]} 3. Bf4 {[%emt 0:00:17]} c5 {[%emt 0:00:08]} 4. e3 {[%emt 0:00:05]} Nc6 {[%emt 0:00:09]} 5. Nbd2 {[%emt 0:00:07]} cxd4 {[%emt 0:00:12]} 6. exd4 {[%emt 0:00:31] D02: 1 d4 d5 2 Nf3 sidelines, including 2...Nf6 3 g3 and 2...Nf6 3 Bf4.} a6 {[%emt 0:00:07]} 7. Bd3 {[%emt 0:06:42]} Nb4 {[%emt 0:02:26]} 8. Ne5 {[%emt 0:02:15]} Nxd3+ {[%emt 0:06:28]} 9. cxd3 {[%emt 0:00:23]} g6 {[%emt 0:04:07]} 10. O-O $146 {[%emt 0:07:09]} ({Predecessor:} 10. Rc1 Bg7 11. Qa4+ Nd7 12. Nxg6 b5 13. Qc2 e5 14. Nxe5 Nxe5 15. dxe5 O-O 16. O-O {1-0 Gubajdullin,A (2300)-Fiorito,J (2328) Titled Tuesday intern op 20th Dec Late blitz 2022 (7)}) 10... Bg7 {[%emt 0:00:32]} 11. h3 {[%emt 0:03:10]} O-O {[%emt 0:01:45]} 12. Re1 {[%emt 0:00:25]} Nh5 {[%emt 0:10:27]} 13. Bh2 {[%emt 0:01:48]} Bh6 {[%emt 0:00:59]} 14. Nb3 {[%emt 0:02:43]} Ng7 {[%emt 0:03:30]} 15. Nc5 {[%emt 0:13:46]} Nf5 {[%emt 0:05:30]} 16. Nf3 {[%emt 0:01:26]} b6 {[%emt 0:01:16]} 17. Na4 {[%emt 0:02:03]} Bd7 {[%emt 0:02:24]} 18. Nc3 {[%emt 0:01:18]} e6 {[%emt 0:01:54]} 19. Qb3 {[%emt 0:05:28]} b5 {[%emt 0:04:28]} 20. a4 {[%emt 0:01:34]} Qb6 {[%emt 0:10:50]} 21. axb5 {[%emt 0:11:47]} axb5 {[%emt 0:08:20]} 22. Qb4 {[%emt 0:09:21]} Rfc8 {[%emt 0:00:14]} 23. Be5 {[%emt 0:00:56]} Bf8 {[%emt 0:01:24]} 24. Qb3 {[%emt 0:00:05]} b4 {[%emt 0:00:47]} 25. Na4 {[%emt 0:02:07]} (25. g4 $15 Ra6 26. Ne2) 25... Bxa4 $17 {[%emt 0:07:45]} 26. Rxa4 {[%emt 0:00:07]} Rxa4 {[%emt 0:00:11]} 27. Qxa4 {[%emt 0:00:07]} Bg7 $1 {[%emt 0:00:28]} 28. Qd7 {[%emt 0:06:15]} Rd8 {[%emt 0:07:33]} (28... Rf8 $1 $17 {[%cal Of5d4] ...Nxd4! is the strong threat.} 29. Bxg7 Rd8 (29... Kxg7 30. Ne5 $17)) 29. Bc7 $11 {[%emt 0:00:29]} Rxd7 {[%emt 0:01:37]} 30. Bxb6 {[%emt 0:00:12]} Rb7 {[%emt 0:04:45]} 31. Bc5 {[%emt 0:00:12]} Bf8 {[%emt 0:01:21]} 32. Ra1 {[%emt 0:00:55]} Kg7 {[%emt 0:00:22]} 33. Ra8 {[%emt 0:02:10]} (33. g4 $14 Nd6 34. Ra8) 33... Be7 $11 {[%emt 0:00:45]} 34. Re8 {[%emt 0:02:02]} b3 {[%emt 0:03:51]} (34... h5 $11) 35. g4 $14 {[%emt 0:00:48]} Bxc5 {[%emt 0:00:11]} 36. dxc5 {[%emt 0:00:26]} Ne7 {[%emt 0:00:03]} 37. Nd4 {[%emt 0:04:06]} e5 $2 {[%emt 0:01:27][%mdl 8192]} (37... Kf6 $1 $14) 38. c6 $1 $18 {[%emt 0:05:04]} Ra7 {[%emt 0:00:04] [#]} 39. Nxb3 $2 {[%emt 0:03:44]} ({White has to play} 39. Rxe7 $1 $18 Rxe7 40. Nb5) 39... Nxc6 $15 {[%emt 0:00:14]} 40. Rc8 {[%emt 0:00:30]} Nb4 {[%emt 0:00:34]} 41. d4 {[%emt 0:00:50]} ({Better is} 41. Nc5 $1 $15) 41... e4 $17 {[%emt 0:00:32]} 42. Nc5 {[%emt 0:00:36]} Ra1+ {[%emt 0:02:29]} 43. Kg2 {[%emt 0:00:11] [#]} Nd3 {[%emt 0:00:15]} (43... g5 $1 $17 {Hoping for ...Nd3.} 44. Kg3 Rg1+ 45. Kh2 Rf1) 44. g5 $2 {[%emt 0:00:50][%mdl 8192]} (44. f3 $1 $15) 44... Nf4+ $19 {[%emt 0:00:46]} (44... Nxb2 45. Rc7 (45. Rd8 $2 Nd3 $19) 45... Ra8 46. f3 $14) 45. Kh2 {[%emt 0:01:37]} Rf1 {[%emt 0:00:49]} 46. Kg3 {[%emt 0:02:08]} Ne2+ {[%emt 0:00:08]} 47. Kg2 {[%emt 0:00:10]} Rg1+ {[%emt 0:00:25]} 48. Kh2 {[%emt 0:00:04]} Rxg5 {[%emt 0:00:23]} 49. h4 {[%emt 0:00:57]} Rg4 {[%emt 0:00:18]} 50. Rd8 {[%emt 0:00:40]} Nf4 {[%emt 0:02:37]} 51. b4 {[%emt 0:00:12]} Rg2+ {[%emt 0:00:05]} 52. Kh1 {[%emt 0:00:38]} Rxf2 {[%emt 0:00:05]} 53. b5 {[%emt 0:00:03]} Rb2 {[%emt 0:00:19]} 54. Rb8 {[%emt 0:00:04]} e3 {[%emt 0:00:11]} 0-1

[Event "2nd Cambridge Open 2024"]
[Site "Cambridge"]
[Date "2024.02.22"]
[Round "6.6"]
[White "Vardanyan, Aras"]
[Black "Gasanov, Eldar"]
[Result "1/2-1/2"]
[ECO "A13"]
[WhiteElo "2284"]
[BlackElo "2487"]
[Annotator "TA"]
[PlyCount "63"]
[EventDate "2024.02.18"]
[EventType "swiss"]
[EventCountry "ENG"]
[SourceTitle "playchess.com"]
[Source "ChessBase"]
[SourceQuality "1"]
[TimeControl "5400+30"]

{[%evp 10,63,26,14,12,22,24,0,0,0,0,0,-8,-33,-34,-33,-24,-16,-18,-14,-8,-42,-48,-35,-32,-32,-27,-34,-18,-42,-35,-36,-24,-30,-25,-81,-79,-76,-95,-67,-6,-12,-15,-10,-10,-7,0,0,0,0,0,0,0,0,0,0]} 1. c4 {[%emt 0:00:03]} e6 {[%emt 0:00:30]} 2. g3 {[%emt 0:00:08]} d5 {[%emt 0:00:26]} 3. Bg2 {[%emt 0:00:05]} Nf6 {[%emt 0:01:12]} 4. Nf3 {[%emt 0:00:05]} d4 {[%emt 0:02:58]} 5. O-O {[%emt 0:01:14]} c5 {[%emt 0:00:05]} 6. e3 {[%emt 0:00:19]} Nc6 {[%emt 0:00:09]} 7. exd4 {[%emt 0:00:32]} cxd4 {[%emt 0:00:05]} 8. Re1 {[%emt 0:00:23]} Bd6 {[%emt 0:01:40]} 9. d3 {[%emt 0:00:41]} h6 {[%emt 0:01:07] Wards off Bg5} 10. Na3 {[%emt 0:00:34][%cal Bb1a3,Ba3c2,Bc2b4][%mdl 32]} O-O {[%emt 0:03:55]} 11. Nc2 {[%emt 0:04:34][%cal Oc1d2]} a5 $1 {[%emt 0:04:14]} 12. a3 {[%emt 0:05:50]} e5 {[%emt 0:08:15]} 13. Rb1 {[%emt 0:07:55]} a4 {[%emt 0:03:46]} 14. Nb4 {[%emt 0:10:39]} Re8 {[%emt 0:02:31]} 15. c5 {[%emt 0:07:52] [#] Strongly threatening Nxc6.} Bc7 {[%emt 0:01:39]} ({Much worse is} 15... Bxc5 $6 16. Nxc6 bxc6 17. Nxe5 $16) 16. Nd2 {[%emt 0:00:57]} Bd7 {[%emt 0:07:19]} 17. Ne4 {[%emt 0:04:47]} Nxb4 {[%emt 0:04:04]} 18. axb4 {[%emt 0:02:15]} Bc6 {[%emt 0:00:33]} 19. Ra1 {[%emt 0:02:29]} Nxe4 {[%emt 0:20:34]} 20. Bxe4 {[%emt 0:03:38]} Bxe4 {[%emt 0:01:43]} 21. dxe4 {[%emt 0:01:59]} Qd7 {[%emt 0:01:21]} 22. Qd3 {[%emt 0:00:33] [#]} (22. Qc2 $11 {keeps the balance.}) 22... b6 $1 $17 {[%emt 0:01:09]} 23. Bd2 {[%emt 0:02:21]} bxc5 {[%emt 0:07:44]} 24. bxc5 {[%emt 0:00:07]} Reb8 {[%emt 0:04:26]} ({Better is} 24... Qc6 $1 $15 25. b4 axb3 26. Rxa8 Rxa8 27. Qxb3 Qxc5) 25. b4 $11 {[%emt 0:07:51] The position is equal.} axb3 {[%emt 0:01:41]} 26. Rxa8 {[%emt 0:00:51]} Rxa8 {[%emt 0:00:04]} 27. Qxb3 {[%emt 0:00:05]} Qa4 {[%emt 0:01:23]} 28. Qb7 {[%emt 0:01:47]} Ra7 {[%emt 0:03:47]} 29. Qc8+ {[%emt 0:04:23]} Kh7 {[%emt 0:00:05]} 30. Qf5+ {[%emt 0:00:56]} Kg8 {[%emt 0:00:08]} 31. Qc8+ {[%emt 0:01:00]} Kh7 {[%emt 0:00:06]} 32. Qf5+ {[%emt 0:00:36] Weighted Error Value: White=0.06 (flawless) /Black=0.06 (flawless) .  Mistake:       	White=1     	Black=1      Inaccurate:     	White=2     	---        OK:         	White=14    	Black=11     Best:        	White=2     	Black=4      Strong:       	---       	Black=2} 1/2-1/2

[Event "2nd Cambridge Open 2024"]
[Site "Cambridge"]
[Date "2024.02.22"]
[Round "6.7"]
[White "Royal, Shreyas"]
[Black "Pozzari, Simone"]
[Result "1-0"]
[ECO "E04"]
[WhiteElo "2459"]
[BlackElo "2282"]
[Annotator "TA"]
[PlyCount "53"]
[EventDate "2024.02.18"]
[EventType "swiss"]
[EventCountry "ENG"]
[SourceTitle "playchess.com"]
[Source "ChessBase"]
[SourceQuality "1"]
[TimeControl "5400+30"]

{[%evp 23,53,23,20,18,25,32,26,40,85,87,84,91,104,120,264,265,269,279,257,263,270,279,508,507,470,469,699,697,675,540,666,533]} 1. d4 {[%emt 0:00:04]} d5 {[%emt 0:00:13]} 2. c4 {[%emt 0:00:06]} e6 {[%emt 0:00:13]} 3. Nf3 {[%emt 0:00:07]} Nf6 {[%emt 0:00:08]} 4. g3 {[%emt 0:00:05]} dxc4 {[%emt 0:00:12]} 5. Bg2 {[%emt 0:00:05]} c5 {[%emt 0:00:08]} 6. O-O {[%emt 0:00:45]} Nc6 {[%emt 0:00:10]} 7. dxc5 {[%emt 0:02:14]} Qxd1 {[%emt 0:00:11]} 8. Rxd1 {[%emt 0:00:03]} Bxc5 {[%emt 0:00:09]} 9. Nbd2 {[%emt 0:00:14]} c3 {[%emt 0:00:14]} 10. bxc3 {[%emt 0:00:06]} O-O {[%emt 0:00:19]} 11. Nb3 {[%emt 0:00:56]} Be7 {[%emt 0:00:06]} 12. Nfd4 {[%emt 0:03:49]} Bd7 {[%emt 0:02:38]} 13. Nb5 {[%emt 0:05:31]} Rfd8 {[%emt 0:05:05]} 14. Be3 {[%emt 0:05:49][%cal Bc1e3,Be3d4,Bd4a7][%mdl 32]} Ne5 {[%emt 0:08:09]} 15. a4 {[%emt 0:08:41] White has an edge.} a6 {[%emt 0:06:25]} 16. Bxb7 {[%emt 0:15:10] White has more active pieces.} axb5 {[%emt 0:01:09]} 17. Bxa8 {[%emt 0:00:07] [#] axb5 is the strong threat.} Rxa8 {[%emt 0:12:42]} 18. Bd4 {[%emt 0:02:58]} Bd6 {[%emt 0:01:22]} (18... bxa4 $16 19. Bxe5 Bb5) 19. axb5 $18 {[%emt 0:04:44]} Rb8 {[%emt 0:04:06]} (19... Rxa1 20. Rxa1 Kf8 (20... Bxb5 $2 21. Ra5 $18) 21. Ra8+ Ke7 22. b6 $18) 20. Ba7 {[%emt 0:04:38]} Rxb5 {[%emt 0:00:32]} 21. Rxd6 {[%emt 0:00:04][%cal Oa7d4] Strongly threatening Bd4!} Rxb3 {[%emt 0:00:56]} 22. Bd4 {[%emt 0:00:06]} Rb5 $2 {[%emt 0:14:43]} (22... Ne8) 23. Ra8+ {[%emt 0:00:11] White is clearly winning.} Be8 {[%emt 0:00:17]} 24. f4 {[%emt 0:00:28]} Ned7 {[%emt 0:11:14] [#]} (24... Ng6 $142 25. Rdd8 (25. Bxf6 gxf6 26. Rxe8+ Kg7 $18) 25... h5 (25... Rb1+ $2 26. Kf2 $18) 26. Bxf6 (26. Rxe8+ Nxe8 27. Rxe8+ Kh7 $16) 26... Rb1+ 27. Kg2 gxf6 28. Rxe8+ Kg7) 25. Rxd7 $1 {[%emt 0:00:04][%mdl 512]} Nxd7 {[%emt 0:00:07]} 26. Rxe8+ {[%emt 0:00:05]} Nf8 {[%emt 0:00:07]} 27. Rc8 {[%emt 0:00:03] Black did not feel at home in the position after the opening.   Weighted Error Value: White=0.00 (flawless) /Black=0.69.  Mistake:       	---       	Black=3      Inaccurate:     	---       	Black=1      OK:         	White=6     	Black=2      Best:        	White=5     	Black=2      Brilliant:      	White=1     	---} 1-0